[Event "29th Paul Keres Memorial 2020"]
[Site "Tallinn"]
[Date "2020.01.12"]
[Round "10.5"]
[White "Maly, Alexey"]
[Black "Fridman, Daniel"]
[Result "1/2-1/2"]
[ECO "D30"]
[WhiteElo "2357"]
[BlackElo "2622"]
[Annotator "ChessBase"]
[PlyCount "78"]
[EventDate "2020.01.11"]
[EventType "swiss"]
[EventCountry "EST"]
[SourceTitle "playchess.com"]
[Source "ChessBase"]
[SourceQuality "1"]
[TimeControl "900+5"]

1. d4 {[%emt 0:00:00]} d5 {[%emt 0:01:00]} 2. c4 {[%emt 0:00:00]} e6 {[%emt 0:00:01]} 3. Nf3 {[%emt 0:00:00]} Nf6 {[%emt 0:00:02]} 4. e3 {[%emt 0:00:00]} a6 {[%emt 0:00:04]} 5. Nbd2 {[%emt 0:00:02]} c5 {[%emt 0:00:08]} 6. dxc5 {[%emt 0:00:04]} Bxc5 7. a3 O-O {[%emt 0:00:11]} 8. b4 {[%emt 0:00:01]} Bd6 {[%emt 0:00:15]} 9. Bb2 {[%emt 0:00:01]} Nc6 {[%emt 0:00:01]} 10. Be2 {[%emt 0:00:07]} Qe7 {[%emt 0:00:05]} 11. O-O {[%emt 0:00:05]} Rd8 {[%emt 0:00:14]} 12. Qb3 {[%emt 0:00:01]} a5 {[%emt 0:01:47]} 13. b5 {[%emt 0:00:10]} a4 {[%emt 0:00:02]} 14. Qc2 {[%emt 0:00:40]} Nb8 {[%emt 0:00:02]} 15. Rfd1 {[%emt 0:00:25]} Nbd7 {[%emt 0:00:02]} 16. cxd5 {[%emt 0:00:57]} exd5 {[%emt 0:00:03]} 17. Nd4 {[%emt 0:00:17]} Ne5 {[%emt 0:00:48]} 18. Nf5 {[%emt 0:00:08]} Bxf5 {[%emt 0:00:02]} 19. Qxf5 {[%emt 0:00:02]} g6 {[%emt 0:01:16]} 20. Qg5 {[%emt 0:00:28]} h6 {[%emt 0:00:01]} 21. Qxh6 {[%emt 0:00:21]} Rac8 {[%emt 0:00:21]} 22. Bd4 {[%emt 0:02:21]} Ned7 {[%emt 0:01:57]} 23. Nf3 {[%emt 0:02:02]} Bxa3 {[%emt 0:00:05]} 24. Ng5 {[%emt 0:01:01]} Ra8 {[%emt 0:03:12]} 25. Rxa3 {[%emt 0:03:56]} Qxa3 {[%emt 0:00:03]} 26. Ne6 {[%emt 0:00:02]} fxe6 {[%emt 0:00:18]} 27. Qxg6+ {[%emt 0:00:01]} Kf8 {[%emt 0:00:08]} 28. Bxf6 {[%emt 0:00:02]} Nxf6 {[%emt 0:00:12]} 29. Qxf6+ {[%emt 0:00:01]} Ke8 {[%emt 0:00:43]} 30. Qxe6+ {[%emt 0:00:11]} Kf8 {[%emt 0:00:01]} 31. Rd4 {[%emt 0:00:37]} Qa1+ {[%emt 0:02:19]} 32. Bd1 {[%emt 0:00:17]} Qxd4 {[%emt 0:00:02]} 33. exd4 {[%emt 0:00:00]} Re8 {[%emt 0:00:01]} 34. Qf6+ {[%emt 0:00:13]} Kg8 {[%emt 0:00:01]} 35. Qg5+ {[%emt 0:00:05]} Kf8 {[%emt 0:00:05]} 36. Qf5+ {[%emt 0:00:06]} Kg7 {[%emt 0:00:02]} 37. Qg5+ {[%emt 0:00:05]} Kf8 {[%emt 0:00:01]} 38. Qf6+ {[%emt 0:00:29]} Kg8 {[%emt 0:00:02]} 39. Qg5+ {[%emt 0:00:29]} Kf8 1/2-1/2

[Event "29th Paul Keres Memorial 2020"]
[Site "Tallinn"]
[Date "2020.01.12"]
[Round "10.6"]
[White "Neiksans, Arturs"]
[Black "Kulaots, Kaido"]
[Result "0-1"]
[ECO "B51"]
[WhiteElo "2560"]
[BlackElo "2510"]
[Annotator "ChessBase"]
[PlyCount "71"]
[EventDate "2020.01.11"]
[EventType "swiss"]
[EventCountry "EST"]
[SourceTitle "playchess.com"]
[Source "ChessBase"]
[SourceQuality "1"]
[TimeControl "900+5"]

1. e4 {[%emt 0:00:00]} c5 {[%emt 0:00:00]} 2. Nf3 {[%emt 0:00:00]} d6 {[%emt 0:00:00]} 3. Bb5+ {[%emt 0:00:00]} Nd7 {[%emt 0:00:02]} 4. O-O {[%emt 0:00:01]} a6 {[%emt 0:00:04]} 5. Bd3 {[%emt 0:00:02]} Ngf6 {[%emt 0:00:07]} 6. Re1 {[%emt 0:00:02]} e6 {[%emt 0:00:44]} 7. c3 {[%emt 0:00:02]} Be7 {[%emt 0:01:36]} 8. Bc2 {[%emt 0:00:02]} c4 {[%emt 0:01:02]} 9. b3 {[%emt 0:00:15]} cxb3 {[%emt 0:00:08]} 10. axb3 {[%emt 0:00:05]} O-O {[%emt 0:00:22]} 11. d4 {[%emt 0:00:04]} e5 {[%emt 0:00:06]} 12. Na3 {[%emt 0:00:14]} Qc7 {[%emt 0:00:22]} 13. Bb2 {[%emt 0:01:00]} Re8 {[%emt 0:01:02]} 14. c4 {[%emt 0:00:39]} Rb8 {[%emt 0:00:49]} 15. c5 {[%emt 0:00:39]} exd4 {[%emt 0:00:55]} 16. cxd6 {[%emt 0:00:08]} Bxd6 {[%emt 0:00:02]} 17. Nc4 {[%emt 0:02:36]} Bb4 {[%emt 0:00:13]} 18. Qxd4 {[%emt 0:02:55]} b5 {[%emt 0:01:04]} 19. e5 {[%emt 0:00:47]} Bxe1 {[%emt 0:01:14]} 20. Nd6 {[%emt 0:02:54]} Qxc2 {[%emt 0:00:37]} 21. exf6 {[%emt 0:00:03]} Bxf2+ {[%emt 0:00:59]} 22. Qxf2 {[%emt 0:00:05]} Qxf2+ {[%emt 0:00:01]} 23. Kxf2 {[%emt 0:00:03]} Re6 {[%emt 0:00:30]} 24. Nxf7 {[%emt 0:02:13]} Nxf6 {[%emt 0:01:17]} 25. N7e5 {[%emt 0:00:26]} Bb7 {[%emt 0:00:08]} 26. Rd1 {[%emt 0:00:12]} Rc8 {[%emt 0:00:06]} 27. Ba3 {[%emt 0:00:24]} h6 {[%emt 0:00:14]} 28. Kg1 {[%emt 0:00:18]} Rc3 {[%emt 0:00:29]} 29. Bb4 {[%emt 0:00:18]} Rc8 {[%emt 0:00:40]} 30. Ng6 {[%emt 0:00:29]} Bxf3 {[%emt 0:00:17]} 31. gxf3 {[%emt 0:00:00]} Kf7 {[%emt 0:00:07]} 32. Nf4 {[%emt 0:00:16]} Rec6 {[%emt 0:00:02]} 33. Kf2 {[%emt 0:00:06]} Rc2+ {[%emt 0:00:17]} 34. Kg3 {[%emt 0:00:04]} Rb2 {[%emt 0:00:40]} 35. Rd3 {[%emt 0:00:10]} g5 {[%emt 0:00:14]} 36. Nd5 0-1

[Event "29th Paul Keres Memorial 2020"]
[Site "Tallinn"]
[Date "2020.01.12"]
[Round "11.3"]
[White "Onischuk, Vladimir"]
[Black "Reprintsev, Alexander"]
[Result "1-0"]
[ECO "B01"]
[WhiteElo "2631"]
[BlackElo "2353"]
[Annotator "RC"]
[PlyCount "69"]
[EventDate "2020.01.11"]
[EventType "swiss"]
[EventCountry "EST"]
[SourceTitle "playchess.com"]
[Source "ChessBase"]
[SourceQuality "1"]
[TimeControl "900+5"]

1. e4 {[%emt 0:00:06]} d5 {[%emt 0:00:00]} 2. exd5 {[%emt 0:00:10]} Qxd5 {[%emt 0:00:00]} 3. Nc3 {[%emt 0:00:02]} Qa5 {[%emt 0:00:00]} 4. Nf3 {[%emt 0:00:15]} Nf6 {[%emt 0:00:00]} 5. g3 {[%emt 0:00:16]} Nc6 {[%emt 0:00:19]} 6. Bg2 {[%emt 0:00:10]} Bg4 {[%emt 0:01:17]} 7. h3 {[%emt 0:00:04]} Bh5 {[%emt 0:00:59]} 8. d3 {[%emt 0:00:09]} O-O-O {[%emt 0:00:28]} 9. Bd2 {[%emt 0:03:05]} e6 {[%emt 0:01:20]} 10. g4 {[%emt 0:00:27]} Bg6 {[%emt 0:00:03]} 11. Nh4 {[%emt 0:00:02]} Nd4 {[%emt 0:00:48]} 12. O-O {[%emt 0:00:56]} Qb6 {[%emt 0:00:58]} 13. a4 {[%emt 0:01:50]} Qxb2 {[%emt 0:01:18]} 14. Nxg6 {[%emt 0:00:41]} hxg6 {[%emt 0:00:01]} 15. Nb5 {[%emt 0:04:09]} Nxb5 {[%emt 0:02:55]} 16. axb5 {[%emt 0:00:08]} Bc5 {[%emt 0:00:07]} 17. Qf3 {[%emt 0:00:46]} Qxb5 {[%emt 0:01:21]} 18. g5 {[%emt 0:00:53]} Nd5 {[%emt 0:01:37]} 19. c4 {[%emt 0:00:04]} Qb2 {[%emt 0:00:05]} 20. Rfd1 {[%emt 0:00:44]} Ne7 {[%emt 0:00:55]} 21. Rab1 {[%emt 0:00:03]} Qe5 {[%emt 0:00:02]} 22. Bf4 {[%emt 0:00:48]} Qf5 {[%emt 0:00:47]} 23. Qxb7+ {[%emt 0:00:03]} Kd7 {[%emt 0:00:00]} 24. Qxc7+ {[%emt 0:00:01]} Ke8 {[%emt 0:00:01]} 25. Rb8 {[%emt 0:00:11]} Rxb8 {[%emt 0:00:41]} 26. Qxb8+ {[%emt 0:00:02]} Kd7 {[%emt 0:00:01]} 27. Qc7+ {[%emt 0:00:12]} Ke8 {[%emt 0:00:02]} 28. d4 {[%emt 0:00:12]} Bb6 {[%emt 0:00:15]} 29. Qb8+ {[%emt 0:00:02]} Kd7 {[%emt 0:00:00]} 30. Qd6+ {[%emt 0:00:01]} Ke8 {[%emt 0:00:06]} 31. c5 {[%emt 0:00:05]} Bd8 {[%emt 0:00:13]} 32. c6 {[%emt 0:00:03]} f6 {[%emt 0:00:47]} 33. c7 {[%emt 0:00:09]} Bxc7 {[%emt 0:00:02]} 34. Qxc7 {[%emt 0:00:01]} Rh4 {[%emt 0:00:16]} 35. Bd6 {[%emt 0:00:06]} 1-0

[Event "29th Paul Keres Memorial 2020"]
[Site "Tallinn"]
[Date "2020.01.12"]
[Round "11.4"]
[White "Meshkovs, Nikita"]
[Black "Kovalenko, Igor"]
[Result "0-1"]
[ECO "A04"]
[WhiteElo "2565"]
[BlackElo "2640"]
[Annotator "ChessBase"]
[PlyCount "84"]
[EventDate "2020.01.11"]
[EventType "swiss"]
[EventCountry "EST"]
[SourceTitle "playchess.com"]
[Source "ChessBase"]
[SourceQuality "1"]
[TimeControl "900+5"]

1. Nf3 {[%emt 0:00:00]} b6 {[%emt 0:00:00]} 2. g3 Bb7 3. Bg2 {[%emt 0:00:00]} g6 {[%emt 0:00:00]} 4. O-O {[%emt 0:00:04]} Bg7 {[%emt 0:00:00]} 5. d4 {[%emt 0:00:06]} Nf6 {[%emt 0:00:00]} 6. b3 {[%emt 0:00:15]} O-O {[%emt 0:00:03]} 7. Bb2 {[%emt 0:00:03]} d6 {[%emt 0:00:11]} 8. c4 {[%emt 0:00:10]} Nbd7 {[%emt 0:00:03]} 9. Nc3 {[%emt 0:00:29]} Ne4 {[%emt 0:00:02]} 10. Qc2 {[%emt 0:00:48]} Nxc3 {[%emt 0:00:01]} 11. Bxc3 {[%emt 0:00:01]} a5 {[%emt 0:00:14]} 12. d5 {[%emt 0:00:26]} Bxc3 {[%emt 0:00:07]} 13. Qxc3 {[%emt 0:00:02]} Nc5 {[%emt 0:00:03]} 14. Nd4 {[%emt 0:00:35]} Qc8 {[%emt 0:00:02]} 15. f4 {[%emt 0:00:23]} e5 {[%emt 0:00:07]} 16. fxe5 {[%emt 0:00:42]} dxe5 {[%emt 0:00:01]} 17. Nb5 {[%emt 0:00:07]} f6 {[%emt 0:00:02]} 18. Rad1 {[%emt 0:01:18]} Qd7 {[%emt 0:00:30]} 19. a3 {[%emt 0:00:56]} a4 {[%emt 0:00:27]} 20. b4 {[%emt 0:00:12]} Nb3 {[%emt 0:00:01]} 21. e3 {[%emt 0:01:56]} Rad8 {[%emt 0:00:16]} 22. d6 {[%emt 0:01:32]} Bxg2 {[%emt 0:00:17]} 23. dxc7 {[%emt 0:00:15]} Qxd1 {[%emt 0:00:22]} 24. Rxd1 {[%emt 0:00:05]} Rxd1+ {[%emt 0:00:01]} 25. Kxg2 {[%emt 0:00:01]} Rd2+ {[%emt 0:00:20]} 26. Kh3 {[%emt 0:00:20]} h5 {[%emt 0:01:19]} 27. g4 {[%emt 0:00:57]} hxg4+ {[%emt 0:00:29]} 28. Kxg4 {[%emt 0:01:19]} Kg7 {[%emt 0:07:09]} 29. Kg3 {[%emt 0:00:31]} Rd7 {[%emt 0:01:44]} 30. c5 bxc5 {[%emt 0:00:59]} 31. bxc5 {[%emt 0:01:23]} Rd5 {[%emt 0:00:17]} 32. Qc4 {[%emt 0:00:49]} Rxc5 {[%emt 0:00:57]} 33. Qxa4 {[%emt 0:00:01]} Nd2 {[%emt 0:00:11]} 34. Qb4 {[%emt 0:00:21]} Rc2 {[%emt 0:00:10]} 35. Kf2 {[%emt 0:01:26]} Rf7 {[%emt 0:00:57]} 36. Ke2 {[%emt 0:00:09]} Rd7 {[%emt 0:00:04]} 37. Nc3 {[%emt 0:00:15]} Rxc7 {[%emt 0:00:14]} 38. Nd5 {[%emt 0:00:06]} Ne4+ {[%emt 0:00:09]} 39. Kf3 {[%emt 0:00:05]} f5 {[%emt 0:00:03]} 40. Qe1 {[%emt 0:00:05]} Ra7 {[%emt 0:00:14]} 41. h4 {[%emt 0:00:04]} Rf2+ {[%emt 0:00:01]} 42. Qxf2 {[%emt 0:00:01]} Nxf2 {[%emt 0:00:01]} 0-1

[Event "29th Paul Keres Memorial 2020"]
[Site "Tallinn"]
[Date "2020.01.12"]
[Round "11.6"]
[White "Maly, Alexey"]
[Black "Turov, Maxim"]
[Result "0-1"]
[ECO "E11"]
[WhiteElo "2357"]
[BlackElo "2567"]
[Annotator "ChessBase"]
[PlyCount "90"]
[EventDate "2020.01.11"]
[EventType "swiss"]
[EventCountry "EST"]
[SourceTitle "playchess.com"]
[Source "ChessBase"]
[SourceQuality "1"]
[TimeControl "900+5"]

1. d4 {[%emt 0:00:00]} Nf6 {[%emt 0:00:00]} 2. c4 {[%emt 0:00:05]} e6 {[%emt 0:00:05]} 3. Nf3 {[%emt 0:00:05]} Bb4+ {[%emt 0:00:05]} 4. Nbd2 {[%emt 0:00:05]} O-O {[%emt 0:00:20]} 5. g3 {[%emt 0:00:00]} d5 {[%emt 0:00:29]} 6. Qb3 {[%emt 0:00:16]} Nc6 {[%emt 0:00:57]} 7. Bg2 {[%emt 0:00:06]} dxc4 {[%emt 0:00:07]} 8. Qxc4 {[%emt 0:00:01]} Qd5 {[%emt 0:00:03]} 9. Qd3 {[%emt 0:00:26]} Rd8 {[%emt 0:00:39]} 10. O-O {[%emt 0:06:29]} Nxd4 {[%emt 0:00:02]} 11. Nxd4 {[%emt 0:00:12]} Qxd4 {[%emt 0:00:02]} 12. Qxd4 {[%emt 0:00:57]} Rxd4 {[%emt 0:00:02]} 13. Nb3 {[%emt 0:00:06]} Rd7 {[%emt 0:00:59]} 14. a3 {[%emt 0:00:41]} Be7 {[%emt 0:00:46]} 15. Na5 {[%emt 0:00:14]} c6 16. b4 {[%emt 0:01:01]} Nd5 {[%emt 0:00:37]} 17. Bb2 {[%emt 0:00:11]} f6 {[%emt 0:00:36]} 18. e4 {[%emt 0:00:20]} Nb6 {[%emt 0:00:06]} 19. Rad1 {[%emt 0:00:03]} Rb8 {[%emt 0:00:30]} 20. Bh3 {[%emt 0:00:33]} Kf7 {[%emt 0:00:17]} 21. f4 {[%emt 0:00:13]} c5 {[%emt 0:00:23]} 22. b5 {[%emt 0:01:25]} Rxd1 23. Rxd1 Bd7 {[%emt 0:00:16]} 24. a4 {[%emt 0:00:51]} Be8 {[%emt 0:00:53]} 25. Ra1 {[%emt 0:00:03]} a6 {[%emt 0:00:33]} 26. Bf1 {[%emt 0:00:15]} axb5 {[%emt 0:00:25]} 27. axb5 {[%emt 0:00:00]} Nc8 {[%emt 0:00:25]} 28. e5 {[%emt 0:00:15]} Nb6 {[%emt 0:00:03]} 29. Rc1 {[%emt 0:00:22]} f5 {[%emt 0:00:21]} 30. Bg2 {[%emt 0:00:38]} Nd5 {[%emt 0:00:19]} 31. Bf1 {[%emt 0:00:31]} b6 {[%emt 0:00:19]} 32. Nc6 {[%emt 0:00:15]} Ra8 {[%emt 0:00:03]} 33. Bc4 {[%emt 0:00:08]} Bd7 {[%emt 0:01:32]} 34. Rd1 {[%emt 0:00:15]} Bxc6 {[%emt 0:00:07]} 35. bxc6 {[%emt 0:00:01]} Ne3 {[%emt 0:00:01]} 36. Rc1 {[%emt 0:00:29]} Nxc4 {[%emt 0:00:05]} 37. Rxc4 {[%emt 0:00:01]} b5 {[%emt 0:00:16]} 38. Rc1 {[%emt 0:00:09]} Ra6 {[%emt 0:00:13]} 39. Rd1 {[%emt 0:00:13]} Rxc6 {[%emt 0:00:07]} 40. Rd7 {[%emt 0:00:02]} b4 {[%emt 0:00:03]} 41. Rb7 {[%emt 0:00:10]} c4 {[%emt 0:00:05]} 42. Kf2 {[%emt 0:00:05]} Rb6 {[%emt 0:00:43]} 43. Rc7 {[%emt 0:00:10]} c3 {[%emt 0:00:03]} 44. Bc1 {[%emt 0:00:05]} b3 {[%emt 0:00:05]} 45. Be3 {[%emt 0:00:10]} Rb5 {[%emt 0:00:10]} 0-1